bitfinex/quotes_ETHUSD_20230117
["timestamp","ask_amount","ask_price","bid_price","bid_amount"]
[1673915482502,35.86153371,1569.8,1568.4,7.81789]
[1673915482503,0.06,1569.7,1569.0,1.441]
[1673915482655,14.0,1569.6,1568.8,0.0539634]
[1673915482873,14.0,1569.4,1568.6,1.0]
[1673915483132,0.4782,1569.3,1568.4,9.4296634]
[1673915483348,0.159,1569.6,1568.6,6.37486]
[1673915483653,36.02053371,1569.8,1569.1,6.37286]
[1673915483868,16.96963532,1569.8,1569.6,1.442]
[1673915484319,16.96963532,1569.8,1569.7,1.431]
[1673915484444,0.099,1569.8,1569.7,1.431]
[1673915484655,0.099,1570.4,1569.8,0.093]
[1673915484947,8.02973304,1570.9,1570.3,1.442]
[1673915484948,6.52484,1570.9,1570.3,1.442]
[1673915485071,0.652484,1570.8,1570.3,1.442]
[1673915485287,0.4778,1570.7,1570.5,1.442]
[1673915485636,0.4778,1570.7,1570.2,3.665]
[1673915485637,2.40571853,1570.4,1570.2,0.066]
[1673915485970,2.40571853,1570.4,1569.9,0.006]
[1673915486290,2.40571853,1570.4,1569.9,6.36963]
[1673915486291,1.60271853,1570.4,1569.9,6.36963]
[1673915486608,1.60271853,1570.4,1570.3,1.442]
[1673915486794,1.60271853,1570.4,1570.3,3.1724]
[1673915486969,0.06,1571.0,1570.3,3.1724]
[1673915486970,0.099,1570.9,1570.4,1.60199147]
[1673915487351,24.223,1571.7,1570.4,4.60199147]
[1673915487352,0.099,1571.4,1570.4,4.60199147]
[1673915487658,4.2678292,1571.5,1571.0,12.73066]
[1673915487659,0.4776,1571.5,1571.0,12.73066]
[1673915487808,26.2091972,1571.5,1570.9,0.066]
[1673915488021,0.92763734,1570.5,1570.4,0.016]
[1673915488288,0.92763734,1570.5,1570.2,7.79941]
[1673915488648,0.12463734,1570.5,1570.3,4.54662407]
[1673915488912,0.12463734,1570.5,1570.2,1.508]
[1673915488913,0.92763734,1570.5,1570.2,1.508]
[1673915489084,0.12463734,1570.5,1570.4,3.11662407]
[1673915489303,0.099,1570.9,1570.5,1.0]
[1673915489490,13.099,1571.0,1570.3,0.066]
[1673915489701,13.099,1571.0,1569.9,1.442]
[1673915489702,5.0,1570.6,1569.9,0.0539634]
[1673915489968,1.432,1570.4,1569.6,1.442]
[1673915490154,4.2094972,1570.3,1569.6,1.392]
[1673915490328,4.77364692,1570.3,1569.6,2.442]
[1673915490785,3.7315972,1570.2,1569.5,7.87921]
[1673915491017,1.441,1570.0,1569.4,0.066]
[1673915491237,6.663,1569.7,1569.2,0.066]
[1673915491379,6.663,1569.7,1568.8,0.016]
[1673915491380,12.9769972,1569.6,1568.8,0.016]
[1673915491597,12.9769972,1569.6,1568.4,0.0539634]
[1673915491598,6.663,1569.2,1568.4,0.0539634]
[1673915491801,4.2098972,1569.1,1568.2,0.006]
[1673915492011,1.432,1568.9,1568.1,4.0]
[1673915492272,0.6216,1568.8,1568.1,2.49173534]
[1673915492481,4.3531972,1568.8,1568.1,1.442]
[1673915492801,27.0,1568.6,1568.0,0.002]
[1673915493013,1.441,1568.3,1568.0,0.05]
[1673915493325,0.099,1568.5,1568.3,6.37633]
[1673915493540,2.107,1569.3,1568.3,6.37633]
[1673915493541,4.2098972,1569.1,1568.3,6.37633]
[1673915493729,0.42098972,1569.0,1568.4,1.436]
[1673915493904,0.4784,1568.9,1568.2,0.066]
[1673915494116,5.6518972,1569.0,1568.2,6.37648]
[1673915494371,0.5773,1569.0,1568.4,1.431]
[1673915494559,3.7915972,1569.5,1568.5,21.21457]
[1673915494774,0.8253,1569.6,1569.0,1.442]
[1673915495036,0.8253,1569.6,1569.1,1.441]
[1673915495037,0.6663,1569.6,1569.1,1.441]
[1673915495188,3.7315972,1569.8,1569.3,1.442]
[1673915495399,0.099,1569.9,1569.1,7.37289]
[1673915495610,2.096,1570.3,1569.2,1.0]
[1673915495611,3.7125972,1570.1,1569.2,1.0]
[1673915495844,0.478,1570.0,1569.5,1.442]
[1673915496089,4.2095972,1570.1,1569.5,1.442]
[1673915496405,0.478,1570.1,1569.6,1.437]
[1673915496623,0.4779,1570.3,1569.7,12.74066]
[1673915496771,21.2943,1570.5,1569.7,8.43331]
[1673915496772,0.5769,1570.5,1569.7,8.43331]
[1673915496978,0.4778,1570.6,1570.0,6.3694]
[1673915497209,0.4778,1570.7,1569.8,0.58351471]
[1673915497419,5.36257882,1570.9,1570.6,1.442]
[1673915497632,5.36257882,1570.9,1570.3,1.496]
[1673915497633,0.89555885,1570.4,1570.3,1.496]
[1673915497817,0.89555885,1570.4,1570.1,0.016]
[1673915498030,0.89555885,1570.4,1569.6,6.43694]
[1673915498031,3.96585093,1570.3,1569.6,6.43694]
[1673915498296,3.96585093,1570.3,1569.7,1.0]
[1673915498297,0.08955589,1570.3,1569.7,1.0]
[1673915498449,0.08955589,1570.3,1569.8,1.442]
[1673915498450,3.96585093,1570.3,1569.8,1.442]
[1673915498662,3.96585093,1570.3,1569.6,0.066]
[1673915498663,0.478,1570.2,1569.6,0.066]
[1673915498990,1.442,1570.0,1569.3,1.448]
[1673915499205,1.442,1570.0,1569.2,0.066]
[1673915499206,5.46249504,1569.9,1569.2,0.066]
[1673915499578,5.35439504,1569.8,1568.9,0.066]
[1673915499707,5.35439504,1569.8,1568.7,6.37449]
[1673915499708,7.80216,1569.6,1568.7,0.006]
[1673915499921,1.433,1569.3,1568.5,6.37542]
[1673915500124,0.4783,1569.2,1568.6,1.442]
[1673915500384,1.433,1569.3,1568.8,1.431]
[1673915500385,0.4782,1569.3,1568.8,1.431]
[1673915500621,0.4782,1569.3,1568.8,1.442]
[1673915500812,3.87629504,1569.2,1568.7,0.066]
[1673915500979,3.87629504,1569.2,1568.1,4.06051471]
[1673915500980,14.4783,1569.1,1568.2,0.126]
[1673915501188,1.436,1568.6,1567.9,2.083]
[1673915501451,4.49839504,1568.5,1567.8,1.502]
[1673915501614,0.4785,1568.5,1567.8,7.81427]
[1673915502001,2.083,1568.8,1567.8,7.81427]
[1673915502002,4.45369504,1568.7,1568.0,1.442]
[1673915502284,1.4784,1568.7,1568.0,7.81915]
[1673915502499,0.099,1568.8,1568.1,1.442]
[1673915502652,0.5773,1569.1,1568.4,1.442]
[1673915502866,5.31829504,1569.0,1568.3,0.066]
[1673915503073,5.79669504,1568.9,1568.2,3.0]
[1673915503334,3.87629504,1568.8,1568.2,10.81352]
[1673915503549,0.4784,1568.7,1568.2,10.81352]
[1673915503864,3.87629504,1568.6,1568.1,0.066]
[1673915504074,2.2991295,1568.5,1567.8,0.066]
[1673915504385,2.2991295,1568.5,1567.7,7.82064]
[1673915504386,4.87629504,1568.4,1567.7,7.82064]
[1673915504574,3.87629504,1568.3,1567.7,7.82064]
[1673915505019,0.099,1568.4,1567.9,3.11662407]
[1673915505172,0.099,1568.6,1568.3,6.37633]
[1673915505380,3.87629504,1568.8,1568.2,0.066]
[1673915505597,0.3876295,1568.7,1567.9,6.44386]
[1673915505911,4.35479504,1568.6,1567.8,10.88629]
[1673915506162,4.35479504,1568.6,1567.7,6.43861]
[1673915506163,4.87629504,1568.5,1567.7,6.44461]
[1673915506331,4.87629504,1568.5,1567.7,6.37861]
[1673915506332,5.79679504,1568.4,1567.7,6.37861]
[1673915506543,3.87629504,1568.3,1567.7,6.37861]
[1673915506942,0.4786,1568.2,1567.9,6.37787]
[1673915507135,0.4785,1568.3,1567.9,6.37787]
[1673915507283,0.4785,1568.3,1567.9,7.80887]
[1673915507489,4.35479504,1568.4,1567.9,6.37792]
[1673915507701,4.35479504,1568.4,1567.8,0.066]
[1673915507702,7.42839861,1568.3,1567.8,0.066]
[1673915507956,4.35489504,1568.2,1567.6,8.0517512]
[1673915508166,0.4786,1568.2,1567.7,4.55362407]
[1673915508377,0.099,1568.4,1567.9,1.442]
[1673915508538,1.541,1568.7,1568.0,3.11662407]
[1673915508750,0.099,1568.8,1568.1,3.42828648]
[1673915509015,3.87629504,1569.1,1568.1,3.42828648]
[1673915509016,3.87629504,1569.1,1568.6,7.81584]
[1673915509226,3.87629504,1569.1,1568.5,0.066]
[1673915509227,4.87629504,1569.0,1568.5,0.066]
[1673915509412,11.01769504,1568.9,1568.3,0.066]
[1673915509629,16.91388504,1568.8,1568.1,0.0077814]
[1673915509837,13.86287354,1568.7,1568.1,0.0077814]
[1673915510053,3.87629504,1568.6,1568.1,0.0077814]
[1673915510238,1.4785,1568.5,1568.1,0.0077814]
[1673915510474,2.9145,1568.5,1568.1,0.0077814]
[1673915511026,1.9145,1568.5,1568.1,0.0077814]
[1673915511173,3.5034795,1568.5,1568.1,0.0077814]
[1673915511383,3.11662407,1568.4,1568.1,0.0077814]
[1673915511599,8.42591911,1568.3,1567.8,0.066]
[1673915511923,8.42591911,1568.3,1567.6,0.2316912]
[1673915511924,9.91251911,1568.2,1567.6,0.2316912]
[1673915512116,7.64719811,1568.1,1567.6,0.2316912]
[1673915512329,4.35489504,1568.0,1567.6,6.6108012]
[1673915512601,5.79089504,1568.0,1567.6,0.2316912]
[1673915512909,0.099,1568.0,1567.6,0.2316912]
[1673915513119,1.4786,1568.1,1567.6,6.6108212]
[1673915513332,5.14061357,1568.1,1567.6,0.2316912]
[1673915513484,1.1229895,1568.1,1567.6,6.6106112]
[1673915513696,0.003,1568.1,1567.9,3.11662407]
[1673915514032,0.099,1568.6,1568.0,22.24927407]
[1673915514215,9.7824,1569.3,1568.4,1.442]
[1673915514216,0.099,1568.9,1568.4,1.442]
[1673915514434,3.87629504,1569.1,1568.6,3.11662407]
[1673915514435,0.099,1569.1,1568.6,3.11662407]
[1673915514797,3.87629504,1569.6,1569.2,6.37264]
[1673915514956,3.87629504,1569.6,1569.1,6.37306]
[1673915514957,0.12485774,1569.7,1569.4,6.37178]
[1673915515329,0.02585774,1569.7,1569.3,6.43786]
[1673915515498,0.02585774,1569.7,1569.2,1.066]
[1673915515714,12.76733774,1569.7,1569.1,0.066]
[1673915515923,12.76733774,1569.7,1568.8,6.37421]
[1673915515924,5.63703893,1569.6,1568.8,6.37421]
[1673915516133,5.73603893,1569.6,1569.0,6.37312]
[1673915516323,0.099,1569.6,1569.4,1.442]
[1673915516694,0.02372985,1569.7,1569.5,17.30152407]
[1673915516862,0.02372985,1569.7,1569.6,15.85870407]
[1673915517074,0.02372985,1569.7,1569.6,7.81304]
[1673915517305,0.82672985,1569.7,1569.5,0.066]
[1673915517647,0.82672985,1569.7,1569.1,0.006]
[1673915517648,0.01663907,1569.4,1569.1,0.006]
[1673915517791,0.01663907,1569.4,1568.8,9.37429]
[1673915517792,3.97118573,1569.4,1568.8,9.37429]
[1673915518007,0.08898057,1569.4,1568.9,15.86390407]
[1673915518219,0.08898057,1569.4,1569.0,4.55862407]
[1673915518465,0.08898057,1569.4,1569.1,15.86269407]
[1673915518794,5.7e-07,1569.4,1569.3,25.10740407]
[1673915519009,5.7e-07,1569.4,1569.3,28.10740407]
[1673915519218,5.7e-07,1569.4,1569.3,29.54240407]
[1673915519373,5.7e-07,1569.4,1569.3,29.44240407]
[1673915519582,5.7e-07,1569.4,1569.3,28.10140407]
[1673915519920,5.7e-07,1569.4,1569.3,30.7267512]
[1673915520270,0.02372985,1569.7,1569.3,30.7267512]
[1673915520486,0.02372985,1569.7,1569.6,1.442]
[1673915520652,0.02372985,1569.7,1569.6,17.30070407]
[1673915520843,1.52128223,1570.1,1569.7,1.0]
[1673915521053,1.52128223,1570.1,1570.0,1.442]
[1673915521263,1.52128223,1570.1,1570.0,20.55026]
[1673915521527,1.52128223,1570.1,1570.0,23.66688407]
[1673915521961,1.52128223,1570.1,1570.0,20.55026]
[1673915522103,1.52128223,1570.1,1569.9,0.066]
[1673915522308,1.52128223,1570.1,1570.0,6.36942]
[1673915522309,1.67341045,1570.1,1570.0,6.36942]
[1673915522582,1.67341045,1570.1,1569.9,0.066]
[1673915522737,5.26803452,1570.1,1569.6,0.006]
[1673915522943,5.26803452,1570.1,1569.5,15.74234]
[1673915522944,4.88220516,1570.0,1569.5,15.74234]
[1673915523585,4.88220516,1570.0,1569.5,9.37117]
[1673915523784,4.88220516,1570.0,1569.4,6.43749]
[1673915523785,0.48822052,1569.9,1569.4,6.43749]
[1673915523997,5.03672407,1569.8,1569.3,0.066]
[1673915524265,5.03672407,1569.8,1569.2,6.3724]
[1673915524266,3.88220516,1569.7,1569.1,0.066]
[1673915524444,0.4781,1569.6,1569.0,6.3732]
[1673915524666,3.88220516,1569.5,1569.0,6.3732]
[1673915524838,3.11662407,1569.4,1568.9,0.066]
[1673915525047,8.91902923,1569.3,1568.6,6.44084]
[1673915525300,14.81353923,1569.2,1568.5,6.44143]
[1673915525465,8.91012923,1569.1,1568.4,6.44173]
[1673915525675,8.91012923,1569.1,1568.3,6.44215]
[1673915525676,1.433,1568.8,1568.3,6.44215]
[1673915525938,6.99882923,1568.7,1568.2,0.064]
[1673915526154,6.99882923,1568.7,1568.0,0.066]
[1673915526155,9.43782923,1568.6,1568.0,0.066]
[1673915526316,15.28884923,1568.5,1567.8,6.44417]
[1673915526535,3.88220516,1568.4,1567.8,12.75634]
[1673915526759,4.45970516,1568.5,1567.8,14.18734]
[1673915527006,0.099,1568.6,1567.9,1.418734]
[1673915527313,6.37516,1568.6,1567.8,7.87518]
[1673915527522,3.88220516,1568.5,1567.8,7.80918]
[1673915527676,0.4785,1568.4,1567.8,7.80918]
[1673915527888,4.36070516,1568.4,1568.1,1.431]
[1673915528143,0.099,1568.5,1568.1,1.431]
[1673915528378,4.36070516,1568.6,1568.1,16.65166507]
[1673915528379,0.4785,1568.6,1568.1,16.65166507]
[1673915528551,0.5774,1568.8,1568.4,1.442]
[1673915528908,0.4784,1568.9,1568.5,12.75086]
[1673915529069,0.4783,1569.0,1568.6,1.442]
[1673915529285,3.59492407,1569.0,1568.6,1.442]
[1673915529498,5.93320516,1569.2,1568.5,7.81211]
[1673915529499,0.35949241,1568.9,1568.5,7.81211]
[1673915529855,3.11662407,1568.8,1568.4,0.066]
[1673915530003,11.73530516,1568.7,1568.1,0.006]
[1673915530212,6.99882923,1568.6,1567.8,6.44415]
[1673915530482,7.47732923,1568.5,1567.8,12.7563]
[1673915530791,14.81086923,1568.4,1567.8,6.37815]
[1673915531006,0.4785,1568.3,1567.8,14.19851]
[1673915531524,3.11662407,1568.2,1567.7,0.066]
[1673915531681,7.47742923,1568.2,1567.6,12.9895712]
[1673915531897,4.88220516,1568.1,1567.6,1.6626912]
[1673915532164,4.88220516,1568.1,1567.6,6.6107612]
[1673915532358,3.88220516,1568.1,1567.6,6.6107612]
[1673915532570,0.099,1568.2,1567.8,1.442]
[1673915532827,0.099,1568.2,1567.7,0.066]
[1673915532828,4.11662407,1568.1,1567.7,0.066]
[1673915532997,4.11662407,1568.1,1567.6,8.0524812]
[1673915533212,4.11662407,1568.1,1567.6,6.6104812]
[1673915533423,3.88220516,1568.0,1567.6,0.2316912]
[1673915533675,3.11662407,1567.9,1567.6,0.2316912]
[1673915533867,19.75554923,1567.8,1567.6,0.2316912]
[1673915534063,8.47752923,1567.7,1567.6,0.2316912]
[1673915534269,8.57652923,1567.7,1567.6,0.2316912]
[1673915534623,1.0,1567.6,1567.3,0.20965638]
[1673915534797,5.36100516,1567.6,1567.3,0.20965638]
[1673915535143,0.099,1567.6,1567.3,0.20965638]
[1673915535360,0.099,1567.7,1567.3,6.58998638]
[1673915535516,9.75491,1568.0,1567.5,1.442]
[1673915535517,0.5777,1567.9,1567.5,1.442]
[1673915535724,3.88220516,1568.0,1567.5,1.442]
[1673915535725,0.099,1568.0,1567.6,3.11662407]
[1673915535994,4.88220516,1568.3,1567.6,6.37911]
[1673915536200,1.0,1568.3,1567.6,12.75827]
[1673915536508,3.59522407,1568.2,1567.6,12.75827]
[1673915536663,4.88220516,1568.3,1567.8,1.442]
[1673915536664,0.099,1568.3,1567.8,1.442]
[1673915536874,0.099,1568.6,1568.2,1.442]
[1673915537136,0.0370752,1568.9,1568.2,15.87008407]
[1673915537293,0.5154752,1568.9,1568.6,12.75006]
[1673915537512,0.5154752,1568.9,1568.6,15.86668407]
[1673915537513,0.0370752,1568.9,1568.6,15.86668407]
[1673915537724,0.0370752,1568.9,1568.6,6.37508]
[1673915538090,0.0370752,1568.9,1568.6,7.81708]
[1673915538296,0.0370752,1568.9,1568.6,14.19219]
[1673915538509,0.0370752,1568.9,1568.8,1.441]
[1673915538663,0.0370752,1568.9,1568.8,23.68049407]
[1673915538867,0.0370752,1568.9,1568.8,25.12249407]
[1673915539086,0.0370752,1568.9,1568.8,12.37391407]
[1673915539293,0.0370752,1568.9,1568.7,0.066]
[1673915539701,0.0370752,1568.9,1568.4,6.4418]
[1673915539880,0.0370752,1568.9,1568.3,7.88326]
[1673915540095,0.0370752,1568.9,1568.4,15.86828407]
[1673915540235,0.0370752,1568.9,1568.6,12.75006]
[1673915540448,0.0370752,1568.9,1568.6,15.86668407]
[1673915540731,0.0370752,1568.9,1568.7,3.11662407]
[1673915541027,7.52e-05,1568.9,1568.8,26.11749407]
[1673915541201,7.52e-05,1568.9,1568.8,31.87304348]
[1673915541407,7.52e-05,1568.9,1568.8,14.19058]
[1673915541643,7.52e-05,1568.9,1568.8,15.86520407]
[1673915541848,7.52e-05,1568.9,1568.8,17.30720407]
[1673915542205,7.52e-05,1568.9,1568.8,18.74920407]
[1673915542353,0.0310514,1569.4,1569.0,19.11984]
[1673915542562,0.0310514,1569.4,1569.3,21.99078]
[1673915542879,0.0310514,1569.4,1569.2,6.43861]
[1673915543095,0.0310514,1569.4,1569.1,1.507]
[1673915543464,0.0310514,1569.4,1568.9,6.37574]
[1673915543465,9.51954547,1569.4,1568.9,0.068]
[1673915543634,3.88220516,1569.3,1568.9,0.002]
[1673915543808,4.11662407,1569.2,1568.9,0.002]
[1673915544182,3.88220516,1569.1,1568.9,0.002]
[1673915544335,0.4783,1569.0,1568.9,0.002]
[1673915544554,5.36050516,1569.0,1568.9,0.002]
[1673915544792,5.45950516,1569.0,1568.9,0.002]
[1673915545121,24.36003115,1569.0,1568.9,0.002]
[1673915545440,24.36003115,1569.0,1568.2,0.066]
[1673915545441,0.00232965,1568.8,1568.2,0.066]
[1673915545758,19.12716,1568.5,1568.1,0.22388476]
[1673915545911,6.37633,1568.3,1568.1,0.22388476]
[1673915546117,0.4786,1568.2,1568.1,0.22388476]
[1673915546328,9.99304275,1568.2,1568.1,0.22388476]
[1673915546536,16.46877275,1568.2,1568.1,0.22388476]
[1673915546779,1.0,1568.1,1567.5,6.44545]
[1673915547020,4.36080516,1568.0,1567.5,6.37945]
[1673915547379,1.9176,1568.0,1567.5,6.37945]
[1673915547590,0.4786,1568.0,1567.7,6.37869]
[1673915547809,9.79316,1568.4,1567.7,6.37869]
[1673915547810,5.36070516,1568.3,1567.7,6.37869]
[1673915548066,6.37718,1568.1,1567.6,0.066]
[1673915548257,6.99882923,1568.0,1567.4,0.0059122]
[1673915548474,8.44082923,1567.9,1567.4,0.0059122]
[1673915548639,1.0,1567.7,1567.4,0.0059122]
[1673915548956,1.442,1567.6,1567.4,0.0059122]
[1673915549160,0.099,1567.7,1567.4,12.7657522]
[1673915549374,0.4787,1567.8,1567.4,6.3857622]
[1673915549585,4.11662407,1567.7,1567.4,0.0059122]
[1673915549850,1.09736841,1567.7,1567.4,0.0059122]
[1673915550004,0.5777,1567.8,1567.4,0.0059122]
[1673915550216,0.4787,1567.8,1567.5,3.11662407]
[1673915550571,2.0106,1568.0,1567.5,15.87538407]
[1673915550899,2.0106,1568.0,1567.4,6.4518522]
[1673915550900,8.2893,1568.0,1567.4,6.4518522]
[1673915551072,0.099,1568.0,1567.5,12.75901]
[1673915551279,4.36080516,1568.1,1567.5,6.37958]
[1673915551537,0.4786,1568.1,1567.5,6.37958]
[1673915551844,0.099,1568.2,1567.6,3.11662407]
[1673915552070,3.88220516,1568.6,1568.1,12.75428]
[1673915552263,0.099,1568.7,1568.1,12.75428]
[1673915552420,1.44332965,1568.8,1568.1,15.87090407]
[1673915552630,1.44332965,1568.8,1568.3,1.0]
[1673915552631,0.00232965,1568.8,1568.3,1.0]
[1673915552841,0.00232965,1568.8,1568.3,22.24498407]
[1673915553109,0.00232965,1568.8,1568.5,12.75086]
[1673915553276,0.00232965,1568.8,1568.5,7.81736]
[1673915553489,0.00232965,1568.8,1568.5,12.75087]
[1673915553690,0.00232965,1568.8,1568.4,7.88354]
[1673915553899,0.00232965,1568.8,1568.4,7.81754]
[1673915554579,1.0,1568.7,1568.3,6.44214]
[1673915554827,1.0,1568.7,1568.2,0.066]
[1673915554828,9.44082923,1568.7,1568.2,0.066]
[1673915554942,9.44082923,1568.7,1568.2,0.002]
[1673915554943,4.82628808,1568.6,1568.2,0.002]
[1673915555152,5.30478808,1568.6,1568.0,6.37727]
[1673915555397,0.099,1568.6,1568.1,3.11662407]
[1673915555624,0.10132965,1568.8,1568.3,19.12872]
[1673915555842,0.00232965,1568.8,1568.3,6.37624]
[1673915555992,0.48072965,1568.8,1568.3,12.75257]
[1673915556207,0.00232965,1568.8,1568.3,17.31019407]
[1673915556571,0.00232965,1568.8,1568.5,7.37543]
[1673915556727,0.00232965,1568.8,1568.7,1.442]
[1673915556936,0.00232965,1568.8,1568.7,25.11572407]
[1673915557415,0.00232965,1568.8,1568.7,21.9991]
[1673915557726,0.80532965,1568.8,1568.6,1.508]
[1673915557934,0.80532965,1568.8,1568.5,6.44143]
[1673915558253,0.00232965,1568.8,1568.5,15.86756407]
[1673915558831,0.00232965,1568.8,1568.4,0.066]
[1673915559108,0.00232965,1568.8,1568.2,6.44248]
[1673915559109,3.11662407,1568.7,1568.2,6.44248]
[1673915559404,3.11662407,1568.7,1568.1,0.066]
[1673915559405,12.16884516,1568.6,1568.1,0.066]
[1673915559616,5.89270516,1568.6,1568.1,9.49373407]
[1673915559829,0.5775,1568.6,1568.1,15.87087407]
[1673915560006,0.4785,1568.6,1568.1,17.30687407]
[1673915560214,3.98120516,1568.7,1568.2,1.431]
[1673915560215,0.4784,1568.7,1568.2,1.431]
[1673915560422,3.98353481,1568.8,1568.3,14.19424]
[1673915560423,0.00232965,1568.8,1568.3,14.19424]
[1673915560965,0.00232965,1568.8,1568.4,1.0]
[1673915561138,0.00232965,1568.8,1568.4,3.11662407]
[1673915561356,0.00232965,1568.8,1568.6,1.442]
[1673915561558,0.00232965,1568.8,1568.7,6.3747]
[1673915561766,0.00232965,1568.8,1568.6,7.88303]
[1673915561977,0.00232965,1568.8,1568.6,7.81703]
[1673915562226,0.00232965,1568.8,1568.6,1.442]
[1673915562510,0.00232965,1568.8,1568.6,14.19218]
[1673915562872,0.00232965,1568.8,1568.7,2.884]
[1673915563186,0.00232965,1568.8,1568.7,12.37532407]
[1673915563510,0.02791096,1569.1,1568.7,9.2587]
[1673915563715,0.02791096,1569.1,1568.6,12.81618]
[1673915564026,11.28328612,1569.1,1568.5,6.44146]
[1673915564240,4.00911612,1569.1,1568.5,9.49208407]
[1673915564454,0.02791096,1569.1,1568.6,3.11662407]
[1673915564607,10.28332612,1569.1,1568.6,7.81076]
[1673915564811,10.28332612,1569.1,1568.5,3.18262407]
[1673915564812,3.88220516,1569.0,1568.5,0.066]
[1673915565082,16.34316407,1568.9,1568.3,0.066]
[1673915565243,16.34316407,1568.9,1568.1,6.37674]
[1673915565244,1.433,1568.7,1568.1,6.37674]
[1673915565446,4.88220516,1568.6,1568.1,6.37674]
[1673915565656,3.88220516,1568.6,1568.1,6.37674]
[1673915565912,4.45960516,1568.7,1568.1,17.30150407]
[1673915566258,4.45960516,1568.8,1568.3,6.37615]
[1673915566388,12.75043,1568.6,1568.2,0.066]
[1673915566603,9.91632923,1568.5,1567.8,6.3842]
[1673915566808,3.88220516,1568.4,1567.8,6.3782]
[1673915567278,5.32420516,1568.4,1567.8,6.3782]
[1673915567465,3.88220516,1568.3,1567.8,6.3782]
[1673915567680,3.88220516,1568.3,1567.7,6.44448]
[1673915567894,3.88220516,1568.3,1567.6,7.82102]
[1673915567895,1.433,1568.2,1567.6,6.44502]
[1673915568069,0.4786,1568.1,1567.6,12.75804]
[1673915568436,5.31520516,1568.0,1567.5,0.066]
[1673915568652,3.88220516,1567.9,1567.4,6.3857022]
[1673915568977,3.88220516,1567.8,1567.4,0.0059122]
[1673915569165,3.98354459,1567.7,1567.4,0.0059122]
[1673915569488,3.98354459,1567.7,1567.3,0.20965638]
[1673915569489,0.4787,1567.7,1567.3,0.20965638]
[1673915569643,0.4787,1567.7,1567.4,0.008237]
[1673915570379,1.099,1567.9,1567.4,7.825087]
[1673915570563,0.099,1568.0,1567.5,7.82132]
[1673915570758,10.83659516,1568.2,1567.5,7.82132]
[1673915570972,3.11662407,1568.1,1567.5,9.8868597]
[1673915571187,5.81277012,1568.2,1567.5,16.2664397]
[1673915571397,5.04718903,1568.2,1567.6,2.442]
[1673915571606,5.04718903,1568.2,1567.5,16.2664397]
[1673915571607,6.99882923,1568.1,1567.5,3.5735397]
[1673915571819,3.88220516,1568.0,1567.4,7.895087]
[1673915572171,13.4176772,1568.0,1567.4,6.388087]
[1673915572328,6.99882923,1567.9,1567.4,0.008237]
[1673915572532,7.09782923,1567.9,1567.4,0.008237]
[1673915572744,8.44082923,1567.8,1567.4,0.008237]
[1673915572984,21.19850923,1567.7,1567.4,0.008237]
[1673915573202,5.71397012,1567.6,1567.4,0.008237]
[1673915573482,23.63298923,1567.5,1567.4,0.008237]
[1673915573729,24.21078923,1567.5,1567.4,0.008237]
[1673915574373,24.21078923,1567.5,1567.1,0.20965638]
[1673915574374,1.008,1567.4,1567.1,0.20965638]
[1673915574559,2.87,1567.2,1567.1,0.20965638]
[1673915574752,1.0,1567.1,1567.0,0.4074101]
[1673915574971,22.90614923,1567.1,1567.0,0.4074101]
[1673915575319,7.663,1567.0,1566.7,0.2157064]
[1673915575472,7.663,1567.0,1566.7,6.4e-06]
[1673915575473,20.58029,1566.8,1566.7,6.4e-06]
[1673915575684,36.24682049,1566.8,1566.7,6.4e-06]
[1673915575937,37.82978545,1566.8,1566.7,6.4e-06]
[1673915576174,13.70233642,1566.8,1566.7,6.4e-06]
[1673915576450,0.099,1566.8,1566.7,6.4e-06]
[1673915576787,6.38243,1566.8,1566.7,6.4e-06]
[1673915576944,6.48143,1566.8,1566.7,6.4e-06]
[1673915577157,10.07705407,1566.8,1566.7,6.4e-06]
[1673915577490,10.07705407,1566.8,1566.6,0.00070876]
[1673915577491,31.90602654,1566.8,1566.6,0.00070876]
[1673915577663,10.34353049,1566.7,1566.6,0.00070876]
[1673915577974,3.69462407,1566.7,1566.6,0.42170876]
[1673915578127,0.578,1566.8,1566.3,2.09]
[1673915578505,6.38192,1567.0,1566.2,7.89255]
[1673915578506,3.96590642,1567.0,1566.5,8.82556]
[1673915578650,29.29425,1567.4,1566.6,0.882556]
[1673915578651,0.099,1567.1,1566.6,0.882556]
[1673915578864,18.16945642,1567.3,1566.6,3.99918007]
[1673915579193,0.099,1567.3,1566.7,3.11662407]
[1673915579451,3.86690642,1567.5,1566.9,1.442]
[1673915579662,11.78109642,1567.6,1566.9,10.94033407]
[1673915579810,3.11662407,1567.5,1566.9,1.442]
[1673915580016,13.64498906,1567.6,1566.9,4.55862407]
[1673915580281,7.26579906,1567.6,1566.9,17.32252407]
[1673915580599,3.11662407,1567.5,1566.9,1.442]
[1673915580932,20.02472906,1567.6,1566.9,7.82388]
[1673915581082,1.535,1567.6,1567.0,4.55262407]
[1673915581299,27.88855,1567.8,1567.2,1.442]
[1673915581488,0.099,1567.8,1567.2,7.8228]
[1673915581698,3.96590642,1567.9,1567.3,14.20267]
[1673915581955,12.26435642,1568.0,1567.3,14.20267]
[1673915582146,1.22643564,1567.9,1567.3,14.20267]
[1673915582603,12.15400971,1567.9,1567.2,0.066]
[1673915582751,16.11991613,1567.9,1567.1,7.82303]
[1673915582966,22.49796613,1567.9,1567.1,17.32068407]
[1673915583292,0.099,1567.9,1567.4,14.18994]
[1673915583506,6.43736,1568.1,1567.4,17.30656407]
[1673915583507,2.0136,1568.1,1567.4,17.30656407]
[1673915583710,2.0136,1568.1,1567.5,1.442]
[1673915583711,0.4786,1568.1,1567.5,1.442]
[1673915583921,0.099,1568.2,1567.8,1.43]
[1673915584137,6.95353,1568.4,1567.8,7.80814]
[1673915584359,3.11662407,1568.3,1567.8,1.43]
[1673915584583,3.11662407,1568.3,1567.7,0.066]